fUST/lending_fUST_20241114
["ID","MTS","AMOUNT","RATE_DAILY","PERIOD"]
[342157272,1731515445712,-615.0,0.000277,2]
[342157274,1731515445723,-300.0,0.000278,2]
[342157278,1731515445732,-500.0,0.00027921,5]
[342157282,1731515445744,-500.72220708,0.00027921,5]
[342157285,1731515445753,-501.60172901,0.00027921,5]
[342157288,1731515445763,-1000.0,0.00027921,5]
[342157292,1731515445772,-500.0,0.00027945,4]
[342157295,1731515445782,-500.0,0.00027945,4]
[342157299,1731515445791,-500.0,0.00027945,4]
[342157301,1731515445801,-507.59544682,0.00027945,4]
[342157304,1731515445810,-500.0,0.00027945,4]
[342157308,1731515445820,-500.0,0.00027945,4]
[342157311,1731515445829,-500.0,0.00027945,4]
[342157314,1731515445838,-500.0,0.00027945,4]
[342157315,1731515445847,-500.0,0.00027945,4]
[342157316,1731515445857,-500.0,0.00027945,4]
[342157317,1731515445866,-500.0,0.00027945,4]
[342157318,1731515445875,-500.0,0.00027945,4]
[342157320,1731515445885,-508.6211709,0.00027945,4]
[342157322,1731515445895,-500.0,0.00027945,4]
[342157323,1731515445904,-500.0,0.00027945,4]
[342157325,1731515445914,-500.0,0.00027945,4]
[342157327,1731515445923,-500.0,0.00027945,4]
[342157329,1731515445931,-682.3,0.00027945,4]
[342157330,1731515445941,-500.0,0.00027945,4]
[342157332,1731515445950,-500.0,0.00027945,4]
[342157334,1731515445960,-500.0,0.00027945,4]
[342157336,1731515445969,-524.95560637,0.00027945,4]
[342157338,1731515445978,-500.0,0.00027945,4]
[342157340,1731515445987,-222.39806679,0.00027945,4]
[342157342,1731515445999,-500.0,0.00027945,4]
[342157344,1731515446008,-500.0,0.00027945,4]
[342157346,1731515446017,-500.0,0.00027945,4]
[342157347,1731515446026,-500.0,0.00027945,4]
[342157349,1731515446035,-500.0,0.00027945,4]
[342157351,1731515446044,-500.0,0.00027945,4]
[342157353,1731515446054,-500.0,0.00027945,4]
[342157355,1731515446063,-500.0,0.00027945,4]
[342157356,1731515446072,-500.0,0.00027945,4]
[342157358,1731515446082,-500.0,0.00027945,4]
[342157360,1731515446091,-500.0,0.00027945,4]
[342157362,1731515446102,-500.0,0.00027945,4]
[342157364,1731515446111,-500.0,0.00027945,4]
[342157366,1731515446121,-500.0,0.00027945,4]
[342157367,1731515446131,-500.0,0.00027945,4]
[342157370,1731515446141,-500.0,0.00027945,4]
[342157372,1731515446152,-500.0,0.00027945,4]
[342157373,1731515446162,-500.0,0.00027945,4]
[342157375,1731515446172,-500.0,0.00027945,4]
[342157377,1731515446182,-500.0,0.00027945,4]
[342157379,1731515446191,-500.0,0.00027945,4]
[342157381,1731515446201,-500.0,0.00027945,4]
[342157383,1731515446210,-500.0,0.00027945,4]
[342157385,1731515446220,-500.0,0.00027945,4]
[342157387,1731515446229,-500.0,0.00027945,4]
[342157389,1731515446239,-607.73,0.00027945,4]
[342157390,1731515446251,-500.0,0.00027945,4]
[342157392,1731515446260,-500.0,0.00027945,4]
[342157394,1731515446270,-4374.32,0.00027945,4]
[342157396,1731515446280,-500.0,0.00027945,4]
[342157398,1731515446289,-500.0,0.00027945,4]
[342157400,1731515446299,-500.0,0.00027945,4]
[342157402,1731515446309,-500.0,0.00027945,4]
[342157404,1731515446318,-555.35,0.00027945,4]
[342157406,1731515446328,-500.0,0.00027945,4]
[342157408,1731515446337,-500.0,0.00027945,4]
[342157410,1731515446344,-500.0,0.00027945,4]
[342157411,1731515446353,-321.82379956,0.00027945,4]
[342157413,1731515446363,-500.0,0.00027945,4]
[342157415,1731515446374,-500.0,0.00027945,4]
[342157417,1731515446383,-177.07292649,0.00027945,4]
[342157419,1731515446393,-500.0,0.00027945,4]
[342157421,1731515446402,-500.0,0.00027945,4]
[342157423,1731515446412,-210.1726774,0.00027945,4]
[342157425,1731515446421,-500.0,0.00027945,4]
[342157427,1731515446431,-500.0,0.00027945,4]
[342157429,1731515446441,-500.0,0.00027945,4]
[342157431,1731515446450,-500.0,0.00027945,4]
[342157433,1731515446460,-500.0,0.00027945,4]
[342157435,1731515446469,-500.0,0.00027945,4]
[342157436,1731515446480,-705.43,0.00027945,4]
[342157438,1731515446490,-431.79653638,0.00027945,4]
[342157440,1731515446503,-500.0,0.00027945,4]
[342157442,1731515446514,-500.0,0.00027945,4]
[342157444,1731515446524,-205.61887056,0.00027945,4]
[342157446,1731515446536,-500.0,0.00027945,4]
[342157448,1731515446549,-500.0,0.00027945,4]
[342157450,1731515446560,-927.46,0.00027945,4]
[342157452,1731515446571,-500.0,0.00027945,4]
[342157454,1731515446580,-524.89730007,0.00027945,4]
[342157456,1731515446589,-500.0,0.00027945,4]
[342157458,1731515446599,-500.0,0.00027945,4]
[342157460,1731515446610,-500.0,0.00027945,4]
[342157461,1731515446621,-500.0,0.00027945,4]
[342157473,1731515446734,-1279.34,0.00027945,4]
[342157475,1731515446746,-500.0,0.00027945,4]
[342157477,1731515446757,-500.0,0.00027945,4]
[342157479,1731515446767,-500.0,0.00027945,4]
[342157481,1731515446776,-855.95,0.00027945,4]
[342157483,1731515446786,-500.0,0.00027945,4]
[342157484,1731515446796,-500.0,0.00027945,4]
[342157486,1731515446807,-500.0,0.00027945,4]
[342157488,1731515446816,-500.0,0.00027945,4]
[342157490,1731515446826,-500.0,0.00027945,4]
[342157492,1731515446835,-500.0,0.00027945,4]
[342157494,1731515446845,-500.0,0.00027945,4]
[342157496,1731515446858,-500.0,0.00027945,4]
[342157498,1731515446869,-500.0,0.00027945,4]
[342157500,1731515446879,-356.5672428,0.00027945,4]
[342157502,1731515446889,-154.26385933,0.00027945,4]
[342157504,1731515446899,-500.0,0.00027945,4]
[342157506,1731515446910,-500.0,0.00027945,4]
[342157508,1731515446920,-500.0,0.00027945,4]
[342157510,1731515446931,-1355.11,0.00027945,4]
[342157512,1731515446942,-500.0,0.00027973,5]
[342157514,1731515446953,-300.0,0.00028,2]
[342157516,1731515446963,-30000.0,0.00028,2]
[342157518,1731515446974,-642.4,0.00028,2]
[342157520,1731515446983,-270.557,0.00028086,2]
[342157522,1731515446995,-2389.0,0.00028086,2]
[342157523,1731515447005,-151.0,0.00028173,6]
[342157525,1731515447016,-500.0,0.00028219,4]
[342157527,1731515447026,-500.0,0.00028219,4]
[342157529,1731515447036,-500.0,0.00028219,4]
[342157531,1731515447046,-500.0,0.00028219,4]
[342157533,1731515447056,-500.0,0.00028219,4]
[342157535,1731515447066,-211.48658074,0.00028219,4]
[342157537,1731515447076,-500.0,0.00028219,4]
[342157539,1731515447088,-222.33,0.00028219,4]
[342157541,1731515447099,-500.0,0.00028219,4]
[342157542,1731515447108,-500.0,0.00028219,4]
[342157544,1731515447119,-682.3,0.00028219,4]
[342157545,1731515447129,-500.0,0.00028219,4]
[342157546,1731515447140,-500.0,0.00028219,4]
[342157548,1731515447150,-500.0,0.00028219,4]
[342157550,1731515447160,-500.0,0.00028219,4]
[342157552,1731515447170,-575.53,0.00028219,4]
[342157553,1731515447179,-500.0,0.00028219,4]
[342157555,1731515447189,-500.0,0.00028219,4]
[342157556,1731515447199,-169.12,0.00028219,4]
[342157558,1731515447208,-500.0,0.00028219,4]
[342157560,1731515447218,-500.0,0.00028219,4]
[342157562,1731515447228,-500.0,0.00028219,4]
[342157564,1731515447238,-500.0,0.00028219,4]
[342157566,1731515447248,-317.78926947,0.00028219,4]
[342157568,1731515447257,-500.0,0.00028219,4]
[342157569,1731515447266,-500.0,0.00028219,4]
[342157571,1731515447276,-500.0,0.00028219,4]
[342157573,1731515447286,-500.0,0.00028219,4]
[342157575,1731515447295,-500.0,0.00028219,4]
[342157577,1731515447304,-500.0,0.00028219,4]
[342157579,1731515447314,-500.0,0.00028219,4]
[342157581,1731515447322,-500.0,0.00028219,4]
[342157583,1731515447331,-500.0,0.00028219,4]
[342157585,1731515447341,-607.73,0.00028219,4]
[342157587,1731515447350,-500.0,0.00028219,4]
[342157588,1731515447360,-4374.32,0.00028219,4]
[342157590,1731515447370,-500.0,0.00028219,4]
[342157592,1731515447380,-500.0,0.00028219,4]
[342157594,1731515447390,-500.0,0.00028219,4]
[342157596,1731515447400,-500.0,0.00028219,4]
[342157598,1731515447409,-555.35,0.00028219,4]
[342157600,1731515447418,-500.0,0.00028219,4]
[342157602,1731515447427,-500.0,0.00028219,4]
[342157604,1731515447437,-500.0,0.00028219,4]
[342157606,1731515447446,-500.0,0.00028219,4]
[342157608,1731515447455,-500.0,0.00028219,4]
[342157610,1731515447464,-500.0,0.00028219,4]
[342157611,1731515447473,-500.0,0.00028219,4]
[342157613,1731515447483,-500.0,0.00028219,4]
[342157615,1731515447492,-500.0,0.00028219,4]
[342157616,1731515447502,-500.0,0.00028219,4]
[342157617,1731515447512,-705.43,0.00028219,4]
[342157618,1731515447522,-500.0,0.00028219,4]
[342157619,1731515447535,-500.0,0.00028219,4]
[342157620,1731515447544,-500.0,0.00028219,4]
[342157621,1731515447554,-500.0,0.00028219,4]
[342157622,1731515447563,-927.46,0.00028219,4]
[342157623,1731515447574,-500.0,0.00028219,4]
[342157624,1731515447583,-500.0,0.00028219,4]
[342157625,1731515447593,-500.0,0.00028219,4]
[342157626,1731515447604,-1279.34,0.00028219,4]
[342157627,1731515447614,-500.0,0.00028219,4]
[342157628,1731515447622,-500.0,0.00028219,4]
[342157629,1731515447631,-500.0,0.00028219,4]
[342157630,1731515447640,-855.95,0.00028219,4]
[342157631,1731515447650,-505.35441379,0.00028219,4]
[342157632,1731515447659,-500.0,0.00028219,4]
[342157633,1731515447669,-500.0,0.00028219,4]
[342157634,1731515447678,-500.0,0.00028219,4]
[342157635,1731515447687,-500.0,0.00028219,4]
[342157636,1731515447698,-500.0,0.00028219,4]
[342157637,1731515447708,-500.0,0.00028219,4]
[342157638,1731515447717,-500.0,0.00028219,4]
[342157639,1731515447726,-500.0,0.00028219,4]
[342157640,1731515447735,-500.0,0.00028219,4]
[342157641,1731515447747,-1355.11,0.00028219,4]
[342157642,1731515447757,-500.0,0.00028329,7]
[342157643,1731515447766,-200.0,0.000284,120]
[342157644,1731515447775,-500.0,0.00028493,4]
[342157645,1731515447785,-500.0,0.00028493,4]
[342157646,1731515447794,-500.0,0.00028493,4]
[342157647,1731515447803,-500.0,0.00028493,4]
[342157648,1731515447812,-500.0,0.00028493,4]
[342157649,1731515447822,-682.3,0.00028493,4]
[342157650,1731515447831,-500.0,0.00028493,4]
[342157651,1731515447840,-316.2,0.00028493,4]
[342157652,1731515447849,-500.0,0.00028493,4]
[342157653,1731515447858,-500.0,0.00028493,4]
[342157654,1731515447867,-500.0,0.00028493,4]
[342157655,1731515447877,-336.77589971,0.00028493,4]
[342157656,1731515447886,-500.0,0.00028493,4]
[342157657,1731515447896,-500.0,0.00028493,4]
[342157658,1731515447905,-500.0,0.00028493,4]
[342157659,1731515447914,-500.0,0.00028493,4]
[342157660,1731515447922,-500.0,0.00028493,4]
[342157661,1731515447932,-422.9223916,0.00028493,4]
[342157662,1731515447941,-500.0,0.00028493,4]
[342157663,1731515447950,-500.0,0.00028493,4]
[342157664,1731515447959,-500.0,0.00028493,4]
[342157665,1731515447968,-223.23589047,0.00028493,4]
[342157666,1731515447977,-500.0,0.00028493,4]
[342157667,1731515447986,-500.0,0.00028493,4]
[342157668,1731515447999,-607.73,0.00028493,4]
[342157669,1731515448008,-4374.32,0.00028493,4]
[342157670,1731515448018,-500.0,0.00028493,4]
[342157671,1731515448027,-500.0,0.00028493,4]
[342157672,1731515448037,-500.0,0.00028493,4]
[342157673,1731515448046,-555.35,0.00028493,4]
[342157674,1731515448056,-500.0,0.00028493,4]
[342157675,1731515448065,-500.0,0.00028493,4]
[342157676,1731515448074,-500.0,0.00028493,4]
[342157677,1731515448084,-500.0,0.00028493,4]
[342157678,1731515448093,-500.0,0.00028493,4]
[342157679,1731515448103,-500.0,0.00028493,4]
[342157680,1731515448112,-500.0,0.00028493,4]
[342157681,1731515448121,-500.0,0.00028493,4]
[342157682,1731515448130,-500.0,0.00028493,4]
[342157683,1731515448140,-705.43,0.00028493,4]
[342157684,1731515448149,-593.16868818,0.00028493,4]
[342157685,1731515448158,-500.0,0.00028493,4]
[342157686,1731515448167,-500.0,0.00028493,4]
[342157687,1731515448176,-500.0,0.00028493,4]
[342157688,1731515448185,-927.46,0.00028493,4]
[342157689,1731515448195,-500.0,0.00028493,4]
[342157690,1731515448204,-500.0,0.00028493,4]
[342157691,1731515448213,-500.0,0.00028493,4]
[342157692,1731515448223,-1279.34,0.00028493,4]
[342157693,1731515448232,-500.0,0.00028493,4]
[342157694,1731515448242,-500.0,0.00028493,4]
[342157695,1731515448255,-500.0,0.00028493,4]
[342157696,1731515448264,-855.95,0.00028493,4]
[342157697,1731515448274,-500.0,0.00028493,4]
[342157698,1731515448283,-500.0,0.00028493,4]
[342157699,1731515448292,-500.0,0.00028493,4]
[342157700,1731515448301,-500.0,0.00028493,4]
[342157701,1731515448310,-500.0,0.00028493,4]
[342157702,1731515448319,-500.0,0.00028493,4]
[342157703,1731515448328,-500.0,0.00028493,4]
[342157704,1731515448337,-500.0,0.00028493,4]
[342157705,1731515448346,-500.0,0.00028493,4]
[342157706,1731515448356,-1355.11,0.00028493,4]
[342157707,1731515448366,-542.12066799,0.00028767,4]
[342157708,1731515448375,-500.0,0.00028767,4]
[342157709,1731515448385,-500.0,0.00028767,4]
[342157710,1731515448396,-500.0,0.00028767,4]
[342157711,1731515448406,-500.0,0.00028767,4]
[342157712,1731515448416,-682.3,0.00028767,4]
[342157713,1731515448425,-500.0,0.00028767,4]
[342157714,1731515448435,-500.0,0.00028767,4]
[342157715,1731515448444,-229.73303704,0.00028767,4]
[342157716,1731515448453,-500.0,0.00028767,4]
[342157718,1731515448462,-500.0,0.00028767,4]
[342157719,1731515448471,-500.0,0.00028767,4]
[342157720,1731515448481,-500.0,0.00028767,4]
[342157721,1731515448491,-500.0,0.00028767,4]
[342157722,1731515448503,-500.0,0.00028767,4]
[342157724,1731515448513,-500.0,0.00028767,4]
[342157725,1731515448523,-500.0,0.00028767,7]
[342157726,1731515448532,-607.73,0.00028767,4]
[342157728,1731515448546,-4374.32,0.00028767,4]
[342157729,1731515448556,-502.30599869,0.00028767,4]
[342157731,1731515448566,-500.0,0.00028767,4]
[342157733,1731515448576,-500.0,0.00028767,4]
[342157736,1731515448586,-555.35,0.00028767,4]
[342157738,1731515448595,-500.0,0.00028767,4]
[342157740,1731515448606,-500.0,0.00028767,4]
[342157742,1731515448618,-500.0,0.00028767,4]
[342157744,1731515448628,-500.0,0.00028767,4]
[342157745,1731515448638,-500.0,0.00028767,4]
[342157747,1731515448648,-500.0,0.00028767,4]
[342157749,1731515448657,-500.0,0.00028767,4]
[342157751,1731515448668,-500.0,0.00028767,4]
[342157753,1731515448678,-500.0,0.00028767,4]
[342157755,1731515448688,-705.43,0.00028767,4]
[342157757,1731515448698,-500.0,0.00028767,4]
[342157759,1731515448708,-500.0,0.00028767,4]
[342157761,1731515448718,-500.0,0.00028767,4]
[342157763,1731515448729,-927.46,0.00028767,4]
[342157765,1731515448739,-500.0,0.00028767,4]
[342157768,1731515448750,-500.0,0.00028767,4]
[342157769,1731515448760,-500.0,0.00028767,4]
[342157772,1731515448770,-1279.34,0.00028767,4]
[342157773,1731515448780,-500.0,0.00028767,4]
[342157775,1731515448790,-500.0,0.00028767,4]
[342157778,1731515448801,-855.95,0.00028767,4]
[342157780,1731515448811,-500.0,0.00028767,4]
[342157781,1731515448821,-500.0,0.00028767,4]
[342157783,1731515448830,-226.23416895,0.00028767,4]
[342157785,1731515448840,-500.0,0.00028767,4]
[342157787,1731515448850,-500.0,0.00028767,4]
[342157789,1731515448860,-500.0,0.00028767,4]
[342157791,1731515448869,-500.0,0.00028767,4]
[342157793,1731515448879,-500.0,0.00028767,4]
[342157795,1731515448889,-500.0,0.00028767,4]
[342157797,1731515448899,-190.26072036,0.00028767,4]
[342157799,1731515448909,-1355.11,0.00028767,4]
[342157801,1731515448919,-2400.34220184,0.00028783,2]
[342157803,1731515448929,-300.0,0.000288,2]
[342157805,1731515448938,-151.0,0.00028848,7]
[342157807,1731515448948,-1500.0,0.00028922,5]
[342157809,1731515448957,-178.77401163,0.00028942,2]
[342157811,1731515448967,-159.0,0.00028997,2]
[342157813,1731515448977,-300.0,0.00029,2]
[342157815,1731515448987,-4175.93511281,0.00029,120]
[342157816,1731515448997,-3206.303,0.00029,2]
[342157818,1731515449007,-600.0,0.00029003,2]
[342157820,1731515449017,-500.0,0.00029041,4]
[342157823,1731515449113,-500.0,0.00029041,4]
[342157824,1731515449135,-460.69,0.00029041,4]
[342157825,1731515449145,-500.0,0.00029041,4]
[342157826,1731515449155,-682.3,0.00029041,4]
[342157827,1731515449164,-500.0,0.00029041,4]
[342157828,1731515449174,-500.0,0.00029041,4]
[342157829,1731515449183,-500.0,0.00029041,4]
[342157830,1731515449193,-500.0,0.00029041,4]
[342157831,1731515449202,-500.0,0.00029041,4]
[342157832,1731515449211,-500.0,0.00029041,4]
[342157833,1731515449221,-500.0,0.00029041,4]
[342157834,1731515449231,-500.0,0.00029041,4]
[342157835,1731515449240,-607.73,0.00029041,4]
[342157836,1731515449252,-4374.32,0.00029041,4]
[342157837,1731515449262,-500.0,0.00029041,4]
[342157838,1731515449272,-500.0,0.00029041,4]
[342157839,1731515449282,-555.35,0.00029041,4]
[342157840,1731515449292,-500.0,0.00029041,4]
[342157841,1731515449302,-500.0,0.00029041,4]
[342157842,1731515449313,-500.0,0.00029041,4]
[342157843,1731515449323,-500.0,0.00029041,4]
[342157844,1731515449333,-500.0,0.00029041,4]
[342157845,1731515449344,-399.07624893,0.00029041,4]
[342157846,1731515449354,-500.0,0.00029041,4]
[342157847,1731515449364,-500.0,0.00029041,4]
[342157848,1731515449374,-500.0,0.00029041,4]
[342157849,1731515449385,-705.43,0.00029041,4]
[342157850,1731515449395,-500.0,0.00029041,4]
[342157851,1731515449405,-500.0,0.00029041,4]
[342157852,1731515449415,-500.0,0.00029041,4]
[342157853,1731515449425,-927.46,0.00029041,4]
[342157854,1731515449435,-500.0,0.00029041,4]
[342157855,1731515449444,-500.0,0.00029041,4]
[342157856,1731515449454,-205.86373106,0.00029041,4]
[342157857,1731515449463,-1279.34,0.00029041,4]
[342157858,1731515449472,-500.0,0.00029041,4]
[342157859,1731515449483,-855.95,0.00029041,4]
[342157860,1731515449493,-500.0,0.00029041,4]
[342157861,1731515449505,-454.6,0.00029041,4]
[342157862,1731515449516,-644.44560806,0.00029041,4]
[342157863,1731515449529,-500.0,0.00029041,4]
[342157864,1731515449539,-500.0,0.00029041,4]
[342157865,1731515449548,-500.0,0.00029041,4]
[342157866,1731515449558,-474.56530802,0.00029041,4]
[342157867,1731515449569,-223.70501661,0.00029041,4]
[342157868,1731515449580,-1355.11,0.00029041,4]
[342157869,1731515449590,-500.0,0.00029211,120]
[342157870,1731515449601,-500.0,0.00029211,120]
[342157871,1731515449611,-500.0,0.00029211,120]
[342157872,1731515449621,-500.0,0.00029211,120]
[342157873,1731515449630,-500.0,0.00029211,120]
[342157874,1731515449640,-500.0,0.00029211,120]
[342157875,1731515449650,-500.0,0.00029211,120]
[342157876,1731515449660,-500.0,0.00029211,120]
[342157877,1731515449669,-500.0,0.00029211,120]
[342157878,1731515449679,-500.0,0.00029211,120]
[342157879,1731515449689,-500.0,0.00029211,120]
[342157880,1731515449699,-500.0,0.00029211,120]
[342157881,1731515449708,-500.0,0.00029211,120]
[342157882,1731515449718,-500.0,0.00029211,120]
[342157883,1731515449729,-345.2,0.00029211,120]
[342157884,1731515449738,-168.285,0.000293,10]
[342157885,1731515449750,-657.99,0.00029305,2]
[342157886,1731515449759,-500.0,0.00029315,4]
[342157887,1731515449769,-500.0,0.00029315,4]
[342157888,1731515449779,-500.0,0.00029315,4]
[342157889,1731515449788,-682.3,0.00029315,4]
[342157890,1731515449798,-500.0,0.00029315,4]
[342157891,1731515449807,-500.0,0.00029315,4]
[342157892,1731515449816,-231.8,0.00029315,4]
[342157893,1731515449826,-500.0,0.00029315,4]
[342157894,1731515449835,-500.0,0.00029315,4]
[342157895,1731515449844,-500.0,0.00029315,4]
[342157896,1731515449853,-500.0,0.00029315,4]
[342157897,1731515449862,-500.0,0.00029315,4]
[342157898,1731515449871,-607.73,0.00029315,4]
[342157899,1731515449881,-4374.32,0.00029315,4]
[342157900,1731515449891,-500.0,0.00029315,4]
[342157901,1731515449900,-500.0,0.00029315,4]
[342157902,1731515449910,-555.35,0.00029315,4]
[342157903,1731515449920,-500.0,0.00029315,4]
[342157904,1731515449930,-500.0,0.00029315,4]
[342157905,1731515449941,-500.0,0.00029315,4]
[342157906,1731515449951,-500.0,0.00029315,4]
[342157907,1731515449960,-500.0,0.00029315,4]
[342157908,1731515449969,-500.0,0.00029315,4]
[342157909,1731515449978,-500.0,0.00029315,4]
[342157910,1731515449988,-500.0,0.00029315,4]
[342157911,1731515450001,-705.43,0.00029315,4]
[342157912,1731515450010,-500.0,0.00029315,4]
[342157913,1731515450020,-533.77,0.00029315,4]
[342157914,1731515450029,-927.46,0.00029315,4]
[342157915,1731515450038,-500.0,0.00029315,4]
[342157916,1731515450048,-500.0,0.00029315,4]
[342157917,1731515450057,-1279.34,0.00029315,4]
[342157918,1731515450066,-500.0,0.00029315,4]
[342157919,1731515450076,-500.0,0.00029315,4]
[342157920,1731515450085,-855.95,0.00029315,4]
[342157921,1731515450094,-500.0,0.00029315,4]
[342157922,1731515450104,-412.53,0.00029315,4]
[342157923,1731515450112,-1355.11,0.00029315,4]
[342157924,1731515450122,-56852.98858249,0.00029349,3]
[342157925,1731515450131,-2963.374,0.00029371,23]
[342157926,1731515450140,-313.32413467,0.00029443,2]
[342157927,1731515450149,-168.274,0.0002945,2]
[342157928,1731515450158,-500.0,0.000295,2]
[342157929,1731515450168,-514.0,0.000295,2]
[342157930,1731515450177,-266.0,0.000295,2]
[342157931,1731515450187,-151.0,0.00029524,7]
[342157932,1731515450196,-18172.6806718,0.0002957,21]
[342157933,1731515450206,-500.0,0.00029589,4]
[342157934,1731515450216,-500.0,0.00029589,4]
[342157935,1731515450227,-500.0,0.00029589,4]
[342157936,1731515450237,-682.3,0.00029589,4]
[342157937,1731515450247,-500.0,0.00029589,4]
[342157938,1731515450256,-493.04,0.00029589,4]
[342157939,1731515450266,-500.0,0.00029589,4]
[342157940,1731515450275,-564.72,0.00029589,4]
[342157941,1731515450284,-500.0,0.00029589,4]
[342157942,1731515450294,-500.0,0.00029589,4]
[342157943,1731515450303,-500.0,0.00029589,10]
[342157944,1731515450312,-607.73,0.00029589,4]
[342157945,1731515450321,-4374.32,0.00029589,4]
[342157946,1731515450331,-500.0,0.00029589,4]
[342157947,1731515450340,-500.0,0.00029589,4]
[342157948,1731515450349,-555.35,0.00029589,4]
[342157949,1731515450359,-500.0,0.00029589,4]
[342157950,1731515450368,-500.0,0.00029589,4]
[342157951,1731515450378,-500.0,0.00029589,4]
[342157952,1731515450387,-500.0,0.00029589,4]
[342157953,1731515450397,-500.0,0.00029589,4]
[342157954,1731515450406,-500.0,0.00029589,4]
[342157955,1731515450415,-500.0,0.00029589,4]
[342157956,1731515450424,-500.0,0.00029589,4]
[342157957,1731515450434,-705.43,0.00029589,4]
[342157958,1731515450444,-500.0,0.00029589,4]
[342157959,1731515450454,-927.46,0.00029589,4]
[342157960,1731515450463,-238.09424726,0.00029589,4]
[342157961,1731515450473,-500.0,0.00029589,4]
[342157962,1731515450482,-1279.34,0.00029589,4]
[342157963,1731515450491,-626.41,0.00029589,4]
[342157964,1731515450506,-855.95,0.00029589,4]
[342157965,1731515450515,-500.0,0.00029589,4]
[342157966,1731515450527,-1355.11,0.00029589,4]
[342157967,1731515450537,-150.112233,0.000296,13]
[342157968,1731515450547,-12274.79207436,0.00029691,2]
[342157969,1731515450556,-500.0,0.00029707,11]
[342157970,1731515450565,-502.36812705,0.00029707,11]
[342157971,1731515450574,-313.32413467,0.00029711,2]
[342157972,1731515450583,-168.263,0.0002976,120]
[342157973,1731515450593,-300.0,0.000298,2]
[342157974,1731515450602,-1004.541885,0.000298,2]
[342157975,1731515450614,-200.0,0.000298,120]
[342157976,1731515450623,-500.0,0.00029863,4]
[342157977,1731515450632,-500.0,0.00029863,4]
[342157978,1731515450641,-500.0,0.00029863,4]
[342157979,1731515450650,-682.3,0.00029863,4]
[342157980,1731515450659,-500.0,0.00029863,4]
[342157981,1731515450669,-500.0,0.00029863,4]
[342157982,1731515450678,-500.0,0.00029863,4]
[342157983,1731515450687,-596.63788951,0.00029863,4]
[342157984,1731515450696,-607.73,0.00029863,4]
[342157985,1731515450705,-2651.74050958,0.00029863,4]
[342157986,1731515450729,-1722.57949042,0.00029863,4]
[342157987,1731515450739,-500.0,0.00029863,4]
[342157988,1731515450753,-500.0,0.00029863,4]
[342157989,1731515450763,-555.35,0.00029863,4]
[342157990,1731515450772,-500.0,0.00029863,4]
[342157991,1731515450782,-500.0,0.00029863,4]
[342157992,1731515450792,-500.0,0.00029863,4]
[342157993,1731515450801,-500.0,0.00029863,4]
[342157994,1731515450810,-500.0,0.00029863,4]